bitfinex-derivatives/quotes_SOLF0:USTF0_20250114
["timestamp","ask_amount","ask_price","bid_price","bid_amount"]
[1736847430618,19.41938076,188.97,188.87,1.6104]
[1736847430822,19.41938076,188.94,188.83,3.1849]
[1736847433228,3.2661,188.96,188.83,3.1849]
[1736847433625,2.6471,188.93,188.86,2.6479]
[1736847433825,2.6471,188.93,188.83,3.1849]
[1736847434931,2.6471,188.93,188.87,2.6478]
[1736847435131,3.2661,188.96,188.87,2.6478]
[1736847435431,2.6473,188.92,188.87,2.6478]
[1736847436035,2.6473,188.92,188.83,3.1849]
[1736847436832,3.2661,188.96,188.83,3.1849]
[1736847437333,3.2661,188.96,188.82,19.41938076]
[1736847437532,2.6473,188.92,188.87,2.6479]
[1736847437933,2.6473,188.92,188.82,19.41938076]
[1736847438137,3.2661,188.96,188.85,19.41938076]
[1736847438334,182.873,188.98,188.85,19.41938076]
[1736847438535,182.873,188.98,188.88,2.6477]
[1736847438737,182.873,188.98,188.85,19.41938076]
[1736847438934,19.41938076,188.96,188.82,19.41938076]
[1736847439131,188.933,188.98,188.82,19.41938076]
[1736847439327,2.6471,188.94,188.82,19.41938076]
[1736847439735,2.6471,188.94,188.88,2.6477]
[1736847439937,182.873,188.98,188.87,19.41938076]
[1736847440238,3.1944,189.04,188.97,2.6465]
[1736847440442,2.646,189.01,188.9,19.41938076]
[1736847440645,3.1944,189.04,188.9,19.41938076]
[1736847440840,22.61378076,189.04,188.93,2.6471]
[1736847441146,2.6464,188.98,188.93,2.6471]
[1736847441944,22.61378076,189.04,188.9,19.41938076]
[1736847442136,182.873,189.05,188.9,21.02388076]
[1736847442444,182.873,189.05,188.93,19.41938076]
[1736847442633,6.06,189.1,188.93,19.41938076]
[1736847443039,6.06,189.1,189.0,2.646]
[1736847443239,2.6455,189.05,189.0,2.646]
[1736847443642,6.06,189.1,189.0,2.646]
[1736847443943,2.6456,189.04,189.0,2.646]
[1736847444139,19.41938076,189.08,188.93,19.41938076]
[1736847444442,2.6458,189.02,188.93,19.41938076]
[1736847444644,19.41938076,189.05,188.9,21.02388076]
[1736847444838,19.41938076,189.02,188.9,1.6045]
[1736847445040,19.41938076,188.99,188.89,100.6908]
[1736847445346,19.41938076,188.99,188.84,21.06278076]
[1736847446246,19.41938076,188.99,188.89,2.6476]
[1736847446744,2.6466,188.97,188.93,2.647]
[1736847447345,4.8675,189.01,188.87,19.41938076]
[1736847447549,2.6464,188.99,188.94,2.6469]
[1736847447847,4.8675,189.01,188.87,19.41938076]
[1736847448045,2.6466,188.97,188.87,19.41938076]
[1736847448441,2.6466,188.97,188.87,25.45938076]
[1736847448750,4.8675,189.01,188.9,19.41938076]
[1736847449041,19.41938076,189.05,188.91,3.1657]
[1736847449244,2.6464,188.99,188.94,2.6469]
[1736847449847,2.6464,188.99,188.91,3.1657]
[1736847449848,2.6459,189.02,188.97,2.6464]
[1736847450037,2.6459,189.02,188.93,19.41938076]
[1736847450038,6.16,189.11,188.96,19.41938076]
[1736847450242,25.57938076,189.11,188.96,19.41938076]
[1736847450443,19.41938076,189.11,188.96,19.41938076]
[1736847450742,6.14,189.11,188.96,19.41938076]
[1736847450943,19.41938076,189.1,188.96,19.41938076]
[1736847451146,19.41938076,189.04,188.91,3.1657]
[1736847451344,4.9346,189.03,188.91,3.1657]
[1736847451742,182.873,189.1,188.91,3.1657]
[1736847451937,182.873,189.1,188.98,19.41938076]
[1736847451938,3.3549,189.1,188.98,19.41938076]
[1736847452340,3.3549,189.1,188.98,25.57938076]
[1736847452543,22.77428076,189.1,188.98,6.16]
[1736847453344,19.41938076,189.07,188.91,22.58508076]
[1736847453543,19.41938076,189.07,188.91,28.74508076]
[1736847454040,2.646,189.01,188.94,2.6468]
[1736847454241,2.646,189.01,188.91,28.74508076]
[1736847454545,19.41938076,189.04,188.91,3.1657]
[1736847454747,2.6464,188.98,188.93,2.6471]
[1736847455350,2.6466,188.97,188.91,3.1657]
[1736847456047,2.6464,188.98,188.93,2.6471]
[1736847456648,2.6464,188.98,188.94,2.6469]
[1736847458052,19.41938076,189.04,188.94,2.6469]
[1736847458249,2.6463,188.99,188.94,2.6469]
[1736847458647,2.6459,189.02,188.97,2.6465]
[1736847459048,1.6655,189.06,188.94,19.41938076]
[1736847459852,2.6455,189.05,189.01,2.6459]
[1736847460052,182.873,189.08,188.94,19.41938076]
[1736847460353,2.6454,189.06,189.01,2.6459]
[1736847460952,2.6454,189.06,189.02,2.6458]
[1736847462449,22.77428076,189.1,188.91,3.1657]
[1736847462647,19.41938076,189.07,188.94,19.41938076]
[1736847462849,2.6461,189.01,188.97,2.6464]
[1736847463050,2.6461,189.01,188.91,9.2857]
[1736847463051,1.5762,189.06,188.91,28.70508076]
[1736847463550,1.6102,189.05,188.91,28.70508076]
[1736847464451,182.873,189.09,188.94,19.41938076]
[1736847464753,2.6456,189.04,188.97,19.41938076]
[1736847465148,182.873,189.09,188.97,19.41938076]
[1736847465552,182.873,189.09,188.98,1.6688]
[1736847465951,2.6454,189.06,189.02,2.6458]
[1736847466353,182.873,189.09,189.02,2.6458]
[1736847466859,182.873,189.09,188.98,1.6688]
[1736847467052,182.873,189.09,188.98,21.08818076]
[1736847467449,2.6452,189.07,188.98,21.08818076]
[1736847467655,1.6554,189.11,188.98,21.08818076]
[1736847467856,1.6554,189.11,188.99,3.3644]
[1736847468156,2.6451,189.08,188.99,3.3644]
[1736847468356,2.6451,189.08,189.04,2.6454]
[1736847469058,2.6452,189.07,189.04,2.6454]
[1736847470056,2.6452,189.07,189.03,2.6457]
[1736847470358,2.6454,189.06,188.99,3.3644]
[1736847470563,2.6454,189.06,189.02,2.6458]
[1736847470763,1.6554,189.11,188.99,3.3644]
[1736847470968,1.6554,189.11,188.99,1.6614]
[1736847471676,2.6458,189.03,188.99,4.3076]
[1736847471963,1.6554,189.11,188.98,1.6688]
[1736847472166,2.6456,189.04,189.01,2.6459]
[1736847472557,1.6554,189.11,189.01,2.6459]
[1736847472762,19.41938076,189.1,189.0,2.6461]
[1736847473164,19.41938076,189.1,188.98,1.6688]
[1736847473668,19.41938076,189.1,189.01,2.6459]
[1736847474269,19.41938076,189.1,189.0,2.6461]
[1736847474670,2.6457,189.04,189.01,2.646]
[1736847475470,2.6454,189.05,189.02,2.6458]
[1736847479272,2.6456,189.04,189.02,2.6458]
[1736847479871,2.6457,189.03,189.0,2.646]
[1736847480272,1.6554,189.11,188.98,1.6688]
[1736847480472,1.6554,189.11,189.01,2.646]
[1736847482074,2.6457,189.04,189.01,2.646]
[1736847483477,2.6455,189.05,188.98,1.6688]
[1736847483678,1.6554,189.11,188.98,1.6688]
[1736847483872,2.645,189.08,189.05,2.6453]
[1736847484177,1.6554,189.11,189.0,19.41938076]
[1736847484973,2.6454,189.06,189.03,2.6457]
[1736847485283,6.0,189.12,189.0,19.41938076]
[1736847485480,2.6449,189.09,189.05,2.6453]
[1736847485680,184.5587,189.14,189.0,19.41938076]
[1736847485984,182.873,189.14,189.03,19.41938076]
[1736847486180,2.6445,189.12,189.04,3.3452]
[1736847486381,182.873,189.14,189.04,3.3452]
[1736847487077,182.873,189.14,189.05,2.72694695]
[1736847487492,182.873,189.14,189.06,1.5544]
[1736847487679,182.873,189.14,189.07,2.7262462]
[1736847487879,182.873,189.14,189.08,2.7262462]
[1736847488081,182.873,189.14,189.04,1.6884]
[1736847488279,2.6451,189.08,189.05,2.72698317]
[1736847488477,2.6451,189.08,189.06,2.72698317]
[1736847488686,2.6451,189.08,189.07,2.72698317]
[1736847489078,2.6451,189.08,189.04,1.6884]
[1736847489283,182.873,189.14,189.04,1.6884]
[1736847489786,182.873,189.14,189.05,1.5349]
[1736847490088,2.6445,189.12,189.08,2.6449]
[1736847490487,2.6443,189.14,189.1,2.6446]
[1736847490680,21.58952476,189.15,189.08,19.41938076]
[1736847490893,21.58952476,189.15,189.12,2.6443]
[1736847491295,21.58952476,189.15,189.08,19.41938076]
[1736847492297,21.58952476,189.15,189.14,2.6442]
[1736847493492,19.03312476,189.15,189.14,2.6442]
[1736847493698,16.47672476,189.15,189.14,2.6442]
[1736847494398,13.92632476,189.15,189.14,2.6442]
[1736847494598,8.81352476,189.15,189.14,2.6442]
[1736847495099,8.81352476,189.15,189.14,22.06358076]
[1736847495299,0.52662476,189.15,189.14,22.06358076]
[1736847496097,2.476e-05,189.15,189.14,22.06358076]
[1736847496404,1.5959,189.25,189.2,2.6432]
[1736847497196,1.5959,189.25,189.14,25.41938076]
[1736847497700,1.5959,189.25,189.14,6.0]
[1736847498103,2.6431,189.22,189.17,2.6436]
[1736847498396,1.5959,189.25,189.14,6.0]
[1736847498805,1.5959,189.25,189.13,1.5881]
[1736847499099,1.5959,189.25,189.13,4.2323]
[1736847499100,2.6437,189.18,189.13,4.2323]
[1736847499702,2.6435,189.19,189.13,1.5881]
[1736847499897,12.07672133,189.23,189.13,1.5881]
[1736847500196,2.6438,189.17,189.12,4.2369]
[1736847500403,12.07672133,189.23,189.12,1.5926]
[1736847501398,2.6432,189.22,189.18,2.6435]
[1736847501599,1.5959,189.25,189.18,2.6435]
[1736847502099,2.643,189.23,189.19,2.6434]
[1736847502299,2.643,189.23,189.12,20.91132031]
[1736847502901,2.643,189.23,189.19,2.6434]
[1736847503198,1.5959,189.25,189.15,19.31872031]
[1736847503402,1.5959,189.25,189.16,1.6766]
[1736847503904,2.6428,189.24,189.19,2.6433]
[1736847504899,5.2812,189.4,189.21,19.31872031]
[1736847505095,1.6706,189.34,189.21,19.31872031]
[1736847505599,20.98932031,189.34,189.21,19.31872031]
[1736847506108,20.98932031,189.34,189.24,2.6426]
[1736847506501,2.6422,189.29,189.25,2.6426]
[1736847506699,2.6422,189.29,189.21,19.31872031]
[1736847507101,2.6423,189.28,189.24,2.6426]
[1736847507502,2.6423,189.28,189.21,19.31872031]
[1736847507503,20.98932031,189.34,189.18,19.31872031]
[1736847507703,2.6425,189.27,189.18,19.31872031]
[1736847507897,20.98932031,189.34,189.21,19.31872031]
[1736847508104,20.98932031,189.34,189.22,1.5857]
[1736847508305,20.98932031,189.34,189.25,2.6425]
[1736847508808,2.642,189.3,189.25,2.6425]
[1736847509101,2.642,189.3,189.26,2.6424]
[1736847509510,1.6706,189.34,189.22,1.5857]
[1736847509804,1.6706,189.34,189.27,2.6422]
[1736847510208,2.6418,189.32,189.28,2.6422]
[1736847510411,1.6706,189.34,189.21,25.37872031]
[1736847510804,2.6419,189.3,189.21,25.37872031]
[1736847511207,2.6419,189.31,189.21,25.37872031]
[1736847511405,1.6706,189.34,189.21,25.37872031]
[1736847511805,2.6422,189.29,189.25,2.6426]
[1736847512010,1.6706,189.34,189.21,25.37872031]
[1736847512209,20.98932031,189.34,189.21,6.06]
[1736847512407,2.6421,189.29,189.25,2.6426]
[1736847513106,1.6706,189.34,189.24,19.31872031]
[1736847514511,2.6417,189.32,189.27,2.6423]
[1736847514709,2.6417,189.32,189.24,19.31872031]
[1736847515704,2.6417,189.32,189.28,2.6421]
[1736847516712,2.642,189.3,189.26,2.6425]
[1736847516912,1.6706,189.34,189.22,19.31872031]
[1736847517309,2.6415,189.33,189.25,2.6425]
[1736847517611,1.6706,189.34,189.22,19.31872031]
[1736847518504,2.6417,189.32,189.27,2.6422]
[1736847519412,2.6417,189.32,189.29,2.642]
[1736847520613,2.6415,189.33,189.29,2.642]
[1736847520816,1.6706,189.34,189.28,2.6421]
[1736847521210,2.6417,189.32,189.28,2.6421]
[1736847521609,1.6706,189.34,189.25,12.06002303]
[1736847521910,1.6706,189.34,189.28,2.6422]
[1736847522413,2.6417,189.32,189.28,2.6422]
[1736847524713,2.6414,189.34,189.25,12.06002303]
[1736847524914,2.6414,189.34,189.26,3.1552]
[1736847525411,2.6414,189.34,189.3,2.6419]
[1736847525913,12.06002303,189.36,189.28,2.6421]
[1736847525914,2.6417,189.32,189.28,2.6421]
[1736847527318,2.6417,189.32,189.29,2.642]
[1736847528508,12.06002303,189.36,189.26,3.1552]
[1736847528718,2.6414,189.34,189.3,2.6418]
[1736847528907,13.69002303,189.38,189.27,12.06002303]
[1736847529106,2.6418,189.32,189.28,2.6421]
[1736847530211,13.69002303,189.38,189.27,12.06002303]
[1736847530412,2.6415,189.33,189.29,2.642]
[1736847531312,12.06002303,189.36,189.27,12.06002303]
[1736847531513,2.6417,189.32,189.28,2.6422]
[1736847532914,2.6417,189.32,189.29,2.642]
[1736847533415,2.6415,189.34,189.31,2.6418]
[1736847534208,12.06002303,189.36,189.29,2.642]
[1736847534406,12.06002303,189.36,189.27,12.06002303]
[1736847535014,12.06002303,189.36,189.27,2.6423]
[1736847535216,3.2633,189.35,189.27,2.6423]
[1736847536117,2.6419,189.3,189.27,2.6423]
[1736847536514,12.06002303,189.33,189.25,2.6425]
[1736847536817,12.06002303,189.33,189.21,12.06002303]
[1736847536818,2.6422,189.29,189.21,12.06002303]
[1736847537013,2.6422,189.29,189.23,2.6428]
[1736847537214,2.6422,189.29,189.21,12.06002303]
[1736847537414,12.06002303,189.33,189.21,12.06002303]
[1736847537415,2.6419,189.31,189.21,12.06002303]
[1736847538211,2.642,189.3,189.26,2.6424]
[1736847538518,12.06002303,189.36,189.27,12.06002303]
[1736847539716,2.6415,189.34,189.27,12.06002303]
[1736847539919,12.06002303,189.36,189.27,12.06002303]
[1736847540321,2.6418,189.31,189.27,2.6422]
[1736847540523,12.06002303,189.36,189.27,2.6422]
[1736847540716,12.06002303,189.33,189.24,12.06002303]
[1736847540911,2.6419,189.31,189.27,2.6422]
[1736847541920,12.06002303,189.33,189.28,2.76938793]
[1736847542120,12.06002303,189.33,189.2,6.16289]
[1736847542322,12.06002303,189.33,189.21,12.06002303]
[1736847542610,2.6424,189.27,189.21,12.06002303]
[1736847543017,2.6424,189.27,189.23,2.6428]
[1736847543322,2.6424,189.27,189.21,12.06002303]
[1736847543522,2.6422,189.28,189.24,2.6427]
[1736847543719,12.06002303,189.3,189.19,3.2797]
[1736847544124,1.5897,189.29,189.19,3.2797]
[1736847544326,4.8994,189.29,189.19,3.2797]
[1736847544525,12.06002303,189.27,189.2,2.6432]
[1736847544823,12.06002303,189.27,189.14,32.74419845]
[1736847544824,12.06002303,189.27,189.15,19.17202321]
[1736847545020,2.643,189.23,189.18,2.6435]
[1736847545323,12.06002303,189.2,189.15,7.11200018]
[1736847545717,2.6437,189.18,189.15,7.11200018]
[1736847545920,6.0,189.25,189.15,7.11200018]
[1736847546222,2.6434,189.2,189.16,2.6438]
[1736847546723,2.6434,189.2,189.15,7.11200018]
[1736847547022,2.6434,189.2,189.15,9.75590018]
[1736847547322,2.6434,189.2,189.15,7.11200018]
[1736847547822,2.6434,189.2,189.15,9.75600018]
[1736847548721,2.6436,189.18,189.15,7.11200018]
[1736847550021,12.06002303,189.17,189.14,16.22700056]
[1736847550223,12.06002303,189.17,189.04,12.06002303]
[1736847550622,2.6447,189.11,189.06,2.6453]
[1736847551025,2.6444,189.13,189.08,2.645]
[1736847552228,2.6441,189.15,189.1,2.6447]
[1736847552627,12.06002303,189.2,189.09,12.06002303]
[1736847552826,2.6436,189.18,189.13,2.6443]
[1736847553228,2.6439,189.16,189.11,2.6446]
[1736847553529,12.06002303,189.17,189.04,1.5368]
[1736847553729,12.06002303,189.17,189.06,12.06002303]
[1736847554534,2.6444,189.13,189.06,12.06002303]
[1736847555429,2.6444,189.13,189.08,2.6449]
[1736847555730,2.6444,189.12,189.08,2.6449]
[1736847556928,12.06002303,189.17,189.08,2.6449]
[1736847557131,12.06002303,189.2,189.09,12.06002303]
[1736847557431,3.2399,189.21,189.12,12.06002303]
[1736847557632,2.6435,189.19,189.12,12.06002303]
[1736847557926,12.06002303,189.2,189.09,12.06002303]
[1736847558132,14.70332303,189.2,189.15,2.6439]
[1736847558835,14.70332303,189.2,189.09,12.06002303]
[1736847559530,194.93302303,189.25,189.12,12.06002303]
[1736847559737,194.93302303,189.25,189.13,4.8416]
[1736847560234,12.06002303,189.19,189.0,5.2923]
[1736847560430,12.06002303,189.19,189.06,12.06002303]
[1736847560830,2.6442,189.14,189.09,2.6449]
[1736847561133,12.06002303,189.16,189.06,12.06002303]
[1736847561335,2.6446,189.12,189.07,2.6451]
[1736847561724,2.6446,189.12,189.06,12.06002303]
[1736847562231,12.06002303,189.16,189.03,12.06002303]
[1736847563034,328.75662679,189.32,189.12,12.06002303]
[1736847563234,12.06002303,189.25,189.13,3.287]
[1736847564634,12.06002303,189.22,189.13,3.287]
[1736847565228,2.6432,189.21,189.15,2.6439]
[1736847565435,2.6432,189.21,189.13,3.287]
[1736847567137,2.6432,189.21,189.17,2.6437]
[1736847567530,2.6436,189.19,189.13,3.287]
[1736847567731,2.6436,189.19,189.15,2.644]
[1736847568527,12.06002303,189.23,189.13,3.287]
[1736847568736,2.6432,189.21,189.17,2.6436]
[1736847569238,2.6435,189.19,189.13,3.287]
[1736847571138,2.6435,189.19,189.15,2.6439]
[1736847571433,15.27842303,189.26,189.15,12.06002303]
[1736847571640,12.06002303,189.26,189.2,2.6433]
[1736847571839,12.06002303,189.26,189.15,12.06002303]
[1736847572135,5.9,189.3,189.13,3.287]
[1736847572136,12.06002303,189.23,189.13,3.287]
[1736847572633,2.6435,189.19,189.15,2.644]
[1736847572833,12.06002303,189.23,189.13,15.34702303]
[1736847573039,182.873,189.29,189.16,12.06002303]
[1736847573040,12.06002303,189.26,189.16,12.06002303]
[1736847573837,2.643,189.23,189.19,2.6433]
[1736847574229,12.06002303,189.26,189.16,12.06002303]
[1736847574441,12.06002303,189.29,189.19,12.06002303]
[1736847574938,182.873,189.35,189.22,12.06002303]
[1736847575139,15.39292303,189.33,189.22,12.06002303]
[1736847575838,5.92,189.37,189.22,12.06002303]
[1736847576139,12.06002303,189.35,189.25,12.06002303]
[1736847576443,12.06002303,189.32,189.23,3.2534]
[1736847577141,2.6419,189.31,189.23,3.2534]
[1736847577346,12.06002303,189.35,189.25,12.06002303]
[1736847577640,2.6417,189.32,189.28,2.6422]
[1736847577842,12.06002303,189.36,189.25,12.06002303]
[1736847578238,2.6415,189.34,189.29,2.6419]
[1736847578435,12.06002303,189.33,189.23,3.2534]
[1736847578839,2.6421,189.29,189.24,2.6428]
[1736847579040,2.6421,189.29,189.23,3.2534]
[1736847579242,12.06002303,189.33,189.23,3.2534]
[1736847579540,2.6419,189.31,189.26,2.6424]
[1736847580239,12.06002303,189.33,189.25,2.6426]
[1736847580441,12.06002303,189.33,189.24,12.06002303]
[1736847580641,12.06002303,189.36,189.24,12.06002303]
[1736847581141,2.6417,189.32,189.24,12.06002303]
[1736847581740,2.6417,189.32,189.27,2.6422]
[1736847582640,12.06002303,189.36,189.24,12.06002303]
[1736847582945,12.06002303,189.33,189.25,2.6425]
[1736847583541,12.06002303,189.29,189.14,6.12]
[1736847583745,12.06002303,189.29,189.19,3.1949]
[1736847583946,182.873,189.37,189.19,3.1949]
[1736847583947,182.873,189.37,189.19,15.25492303]
[1736847584142,182.873,189.37,189.22,12.06002303]
[1736847584143,12.06002303,189.32,189.22,12.06002303]
[1736847584554,2.6423,189.28,189.23,2.6428]
[1736847584844,2.6423,189.28,189.22,12.06002303]
[1736847585038,2.6422,189.29,189.22,2.643]
[1736847585237,2.6422,189.29,189.19,15.25492303]
[1736847585238,12.06002303,189.32,189.19,15.25492303]
[1736847585842,12.06002303,189.32,189.22,12.06002303]
[1736847586849,2.6422,189.29,189.25,2.6426]
[1736847587049,2.6422,189.29,189.22,12.06002303]
[1736847587348,12.06002303,189.34,189.22,12.06002303]
[1736847587547,2.6418,189.31,189.25,12.06002303]
[1736847587748,12.06002303,189.34,189.25,12.06002303]
[1736847587950,2.6417,189.32,189.27,2.6422]
[1736847588145,12.06002303,189.34,189.27,2.6422]
[1736847588543,12.06002303,189.34,189.25,12.06002303]
[1736847588745,12.06002303,189.34,189.26,2.6424]
[1736847588946,12.06002303,189.34,189.25,12.06002303]
[1736847589145,2.6422,189.29,189.25,2.6426]
[1736847590252,12.06002303,189.31,189.23,1.5603]
[1736847590452,12.06002303,189.31,189.19,3.1949]
[1736847590453,12.06002303,189.29,189.19,3.1949]
[1736847590953,12.06002303,189.26,189.19,0.19688]
[1736847591351,5.2828,189.34,189.19,0.19688]
[1736847591648,12.06002303,189.25,189.19,0.19688]
[1736847594556,2.6429,189.24,189.19,0.19688]
[1736847594760,12.06002303,189.29,189.21,2.6431]
[1736847595757,12.06002303,189.29,189.19,0.19688]
[1736847595960,12.06002303,189.29,189.23,2.6429]
[1736847596161,12.06002303,189.29,189.19,12.25690303]
[1736847596456,1.6062,189.31,189.19,12.25690303]
[1736847596658,15.31402303,189.32,189.19,12.25690303]
[1736847596856,13.75472303,189.32,189.22,12.06002303]
[1736847597664,2.6421,189.29,189.25,2.6426]
[1736847597862,13.75472303,189.32,189.22,12.06002303]
[1736847598064,1.6737,189.35,189.25,12.06002303]
[1736847598264,2.6417,189.32,189.25,12.06002303]
[1736847598565,12.06002303,189.38,189.25,12.06002303]
[1736847598964,2.6416,189.33,189.29,2.642]
[1736847599365,1.6809,189.4,189.31,12.06002303]
[1736847599561,161.40927938,189.45,189.34,12.06002303]
[1736847600171,15.29522303,189.45,189.34,12.06002303]
[1736847600971,2.6403,189.42,189.38,2.6408]
[1736847601160,12.06002303,189.45,189.34,12.06002303]
[1736847601366,2.6407,189.39,189.35,2.6412]
[1736847602465,12.06002303,189.45,189.34,12.06002303]
[1736847602869,2.6401,189.43,189.34,12.06002303]
[1736847603069,2.6401,189.43,189.38,2.6407]
[1736847603267,12.06002303,189.45,189.38,2.6407]
[1736847603464,2.6401,189.43,189.38,2.6407]
[1736847603673,13.74092303,189.48,189.37,12.06002303]
[1736847603968,12.06002303,189.48,189.37,12.06002303]
[1736847604167,2.6397,189.46,189.41,2.6403]
[1736847604368,2.6397,189.46,189.37,12.06002303]
[1736847604567,2.6397,189.46,189.38,1.6337]
[1736847604767,2.6399,189.45,189.38,1.6337]
[1736847604968,12.06002303,189.48,189.38,1.6337]
[1736847605274,1.5381,189.53,189.43,12.06002303]
[1736847606763,2.6395,189.48,189.43,14.70002303]
[1736847606968,2.6395,189.48,189.43,12.06002303]
[1736847607174,229.62506767,189.54,189.43,12.06002303]
[1736847607374,2.6391,189.5,189.46,2.6397]
[1736847607682,229.62506767,189.54,189.43,12.06002303]
[1736847608674,2.6389,189.52,189.47,2.6395]
[1736847609076,217.56504464,189.54,189.47,2.6395]
[1736847609269,2.6388,189.53,189.47,2.6395]
[1736847609469,2.6388,189.53,189.43,12.06002303]
[1736847609470,229.62506767,189.54,189.45,2.6397]
[1736847609770,229.62506767,189.54,189.43,12.06002303]
[1736847609967,229.62506767,189.54,189.46,2.6397]
[1736847610174,2.639,189.52,189.43,12.06002303]
[1736847610669,2.639,189.52,189.47,2.6395]
[1736847610870,217.56504464,189.54,189.49,12.06002303]
[1736847611574,217.56504464,189.54,189.5,2.6391]
[1736847612171,217.56504464,189.54,189.48,3.2199]
[1736847612476,12.06002303,189.56,189.48,3.2199]
[1736847613176,2.6387,189.53,189.48,5.8593]
[1736847613483,12.06002303,189.56,189.48,3.2199]
[1736847613771,12.06002303,189.56,189.46,1.6027]
[1736847613974,12.06002303,189.53,189.44,6.02]
[1736847614279,12.06002303,189.56,189.43,12.06002303]
[1736847614965,2.6393,189.5,189.44,2.6398]
[1736847615374,12.06002303,189.56,189.46,2.6397]
[1736847615375,2.639,189.51,189.46,2.6397]
[1736847615571,12.06002303,189.56,189.43,12.06002303]
[1736847615977,2.6387,189.53,189.47,2.6394]
[1736847616481,12.06002303,189.56,189.47,2.6394]
[1736847616877,2.6387,189.53,189.45,2.6397]
[1736847617078,12.06002303,189.6,189.47,12.06002303]
[1736847617278,12.06002303,189.6,189.5,12.06002303]
[1736847617579,2.6382,189.57,189.53,2.6387]
[1736847617875,12.06002303,189.6,189.5,12.06002303]
[1736847618068,2.6383,189.56,189.5,12.06002303]
[1736847618272,12.06002303,189.63,189.5,12.06002303]
[1736847618469,12.06002303,189.63,189.53,12.06002303]
[1736847618470,2.6384,189.56,189.53,12.06002303]
[1736847618869,2.6384,189.56,189.52,2.6388]
[1736847619077,2.6379,189.6,189.53,12.06002303]
[1736847619273,12.06002303,189.66,189.53,12.06002303]
[1736847619479,43.88243106,189.69,189.56,12.06002303]
[1736847619771,2.6376,189.62,189.58,2.638]
[1736847619979,2.6376,189.62,189.56,12.06002303]
[1736847620178,2.6372,189.64,189.56,12.06002303]
[1736847620376,12.06002303,189.67,189.56,12.06002303]
[1736847620768,12.06002303,189.64,189.53,12.06002303]
[1736847620974,12.06002303,189.61,189.48,7.5323]
[1736847621178,12.06002303,189.61,189.49,12.06002303]
[1736847621778,12.06002303,189.64,189.52,12.06002303]
[1736847621980,43.88243106,189.69,189.52,12.06002303]
[1736847622176,12.06002303,189.66,189.55,12.06002303]
[1736847622379,2.6379,189.59,189.55,12.06002303]
[1736847622680,12.06002303,189.66,189.55,12.06002303]
[1736847622880,2.6383,189.56,189.52,14.69892303]
[1736847623481,12.06002303,189.62,189.52,12.06002303]
[1736847623677,12.06002303,189.62,189.53,2.6387]
[1736847623885,12.06002303,189.63,189.53,2.6387]
[1736847624181,2.6381,189.58,189.53,2.6387]
[1736847624584,12.06002303,189.63,189.52,14.69882303]
[1736847624786,12.06002303,189.63,189.52,12.06002303]
[1736847624975,3.2345,189.7,189.58,2.6379]
[1736847625180,3.2345,189.7,189.59,12.06002303]
[1736847625584,3.2345,189.7,189.6,2.6377]
[1736847626082,2.6373,189.63,189.59,12.06002303]
[1736847626277,2.6373,189.63,189.57,3.1596]
[1736847626486,2.6372,189.64,189.57,3.1596]
[1736847626877,2.6372,189.64,189.59,2.6379]
[1736847627381,3.2345,189.7,189.59,2.6379]
[1736847627582,12.06002303,189.68,189.57,3.1596]
[1736847628287,2.6373,189.64,189.59,2.6378]
[1736847628786,2.6368,189.67,189.59,2.6378]
[1736847628980,12.06002303,189.69,189.59,2.6378]
[1736847629290,12.06002303,189.69,189.57,3.1596]
[1736847629988,2.6372,189.64,189.6,2.6377]
[1736847630187,12.06002303,189.69,189.57,3.1596]
[1736847630988,2.6372,189.64,189.6,2.6376]
[1736847632989,2.6373,189.63,189.59,2.6378]
[1736847633287,12.06002303,189.69,189.57,3.1596]
[1736847633789,12.06002303,189.69,189.59,2.6378]
[1736847634188,12.06002303,189.69,189.57,3.1596]
[1736847634489,12.06002303,189.69,189.59,2.6378]
[1736847635084,2.6373,189.63,189.6,2.6377]
[1736847636392,12.06002303,189.69,189.6,2.6377]